bitfinex/quotes_BTCUSD_20250118
["timestamp","ask_amount","ask_price","bid_price","bid_amount"]
[1737197865575,0.20669373,103180.0,103170.0,0.17228988]
[1737197869988,0.20669373,103180.0,103170.0,0.08988988]
[1737197870467,0.20669373,103180.0,103170.0,0.01808988]
[1737197870468,0.59155897,103180.0,103170.0,0.01808988]
[1737197870708,0.59058628,103180.0,103170.0,0.01808988]
[1737197871428,0.096927,103170.0,103160.0,0.0238988]
[1737197871654,0.31434855,103170.0,103160.0,0.0238988]
[1737197871884,0.31337586,103170.0,103160.0,0.0238988]
[1737197874291,0.20515143,103170.0,103160.0,0.0238988]
[1737197874486,0.20612412,103170.0,103160.0,0.0238988]
[1737197875085,0.10822443,103170.0,103160.0,0.0238988]
[1737197877666,0.11747996,103170.0,103160.0,0.0238988]
[1737197878402,0.21440696,103170.0,103160.0,0.0238988]
[1737197880354,0.10618253,103170.0,103160.0,0.0238988]
[1737197880878,0.10618253,103170.0,103160.0,0.11040004]
[1737197881320,0.21440696,103170.0,103160.0,0.11040004]
[1737197882916,0.00925553,103170.0,103160.0,0.23716929]
[1737197883144,0.00057861,103180.0,103160.0,0.24893961]
[1737197883370,0.09749661,103180.0,103160.0,0.24893961]
[1737197883589,0.09749661,103180.0,103160.0,0.34404332]
[1737197883812,0.00057861,103180.0,103160.0,0.87355204]
[1737197884035,0.00057861,103180.0,103170.0,0.099]
[1737197884473,0.20572104,103180.0,103170.0,0.099]
[1737197884738,0.20669373,103180.0,103170.0,0.10950124]
[1737197884955,0.21604205,103180.0,103170.0,0.10950124]
[1737197885173,0.21506936,103180.0,103170.0,0.10950124]
[1737197885614,0.21506936,103180.0,103170.0,0.023]
[1737197887224,0.21506936,103180.0,103170.0,0.10950124]
[1737197887438,0.00992693,103180.0,103170.0,0.10950124]
[1737197887657,0.10684493,103180.0,103170.0,0.10950124]
[1737197887926,0.00992693,103180.0,103170.0,0.10950124]
[1737197888166,0.10684493,103180.0,103170.0,0.10950124]
[1737197888356,0.21604205,103180.0,103170.0,0.10950124]
[1737197888675,0.21506936,103180.0,103170.0,0.10950124]
[1737197890167,0.10684493,103180.0,103170.0,0.10950124]
[1737197890455,0.21604205,103180.0,103170.0,0.10950124]
[1737197890717,0.21506936,103180.0,103170.0,0.10950124]
[1737197890957,0.10684493,103180.0,103170.0,0.10950124]
[1737197891231,0.00992693,103180.0,103170.0,0.10950124]
[1737197891883,0.00992693,103180.0,103170.0,0.23480124]
[1737197892363,0.00057861,103180.0,103170.0,0.23480124]
[1737197893957,0.00057861,103180.0,103170.0,0.5375556]
[1737197895879,0.00057861,103180.0,103170.0,0.36455311]
[1737197896486,0.00057861,103180.0,103170.0,0.5375556]
[1737197897322,0.00057861,103180.0,103170.0,0.36455311]
[1737197900012,0.00057861,103180.0,103170.0,0.5375556]
[1737197901451,0.20572104,103180.0,103170.0,0.5375556]
[1737197901810,0.00057861,103180.0,103170.0,0.5375556]
[1737197902219,0.09749661,103180.0,103170.0,0.5375556]
[1737197902441,0.00057861,103180.0,103170.0,0.5375556]
[1737197902643,0.00057861,103180.0,103170.0,0.1483]
[1737197904895,0.00057861,103180.0,103170.0,0.36455311]
[1737197905128,0.09749661,103180.0,103170.0,0.36455311]
[1737197905550,0.00057861,103180.0,103170.0,0.36455311]
[1737197906228,0.09749661,103180.0,103170.0,0.36455311]
[1737197906693,0.20572104,103180.0,103170.0,0.36455311]
[1737197907287,0.09749661,103180.0,103170.0,0.36455311]
[1737197907525,0.20572104,103180.0,103170.0,0.36455311]
[1737197908814,0.09749661,103180.0,103170.0,0.36455311]
[1737197913988,0.09749661,103180.0,103170.0,0.28445311]
[1737197916359,0.09749661,103180.0,103170.0,0.15470124]
[1737197916578,0.00057861,103180.0,103170.0,0.15470124]
[1737197916866,0.09749661,103180.0,103170.0,0.15470124]
[1737197917517,0.00057861,103180.0,103170.0,0.23680124]
[1737197918302,0.00057861,103180.0,103170.0,0.33604205]
[1737197919035,0.00057861,103180.0,103170.0,0.46579392]
[1737197919998,0.00057861,103180.0,103170.0,0.63879641]
[1737197921181,0.2056947,103180.0,103170.0,0.4574556]
[1737197921352,0.09749661,103180.0,103170.0,0.4574556]
[1737197922133,0.2056947,103180.0,103170.0,0.4574556]
[1737197922945,0.20666739,103180.0,103170.0,0.28445311]
[1737197923099,0.28396739,103180.0,103170.0,0.21625311]
[1737197923316,0.48223551,103180.0,103170.0,0.21625311]
[1737197923815,0.4871318,103180.0,103170.0,0.21625311]
[1737197924027,0.4871318,103180.0,103170.0,0.08650124]
[1737197924748,0.47719033,103180.0,103160.0,0.0008988]
[1737197924999,0.47719033,103180.0,103160.0,0.0238988]
[1737197925000,0.20609778,103170.0,103160.0,0.0238988]
[1737197925461,0.28339778,103170.0,103160.0,0.0238988]
[1737197925717,0.28242509,103170.0,103160.0,0.0238988]
[1737197929355,0.20512509,103170.0,103160.0,0.0238988]
[1737197931981,0.20609778,103170.0,103160.0,0.0238988]
[1737197932679,0.20512509,103170.0,103160.0,0.0238988]
[1737197932872,0.20555309,103170.0,103160.0,0.0238988]
[1737197933456,0.20652578,103170.0,103160.0,0.0238988]
[1737197933652,0.21609545,103170.0,103160.0,0.0238988]
[1737197933856,0.21512276,103170.0,103160.0,0.0238988]
[1737197938692,0.32332085,103170.0,103160.0,0.0238988]
[1737197938925,0.65395795,103170.0,103160.0,0.0008988]
[1737197939143,0.70395795,103170.0,103160.0,0.0008988]
[1737197940499,0.80395795,103170.0,103160.0,0.0008988]
[1737197940719,1.02139927,103170.0,103160.0,0.0008988]
[1737197942453,0.80395795,103170.0,103160.0,0.0008988]
[1737197944198,0.89093448,103170.0,103160.0,0.0008988]
[1737197944991,0.80395795,103170.0,103160.0,0.0008988]
[1737197945189,0.75475795,103170.0,103160.0,0.0008988]
[1737197953417,0.65475795,103170.0,103160.0,0.0008988]
[1737197954659,1.04615233,103170.0,103160.0,0.0008988]
[1737197956453,0.87219927,103170.0,103160.0,0.0008988]
[1737197957461,1.04615233,103170.0,103160.0,0.0008988]
[1737197963531,1.26359366,103170.0,103160.0,0.0008988]
[1737197964689,1.25869737,103170.0,103160.0,8e-07]
[1737197964924,1.35793818,103170.0,103160.0,8e-07]
[1737197965153,0.323936,103160.0,103150.0,0.00089838]
[1737197965397,0.63957299,103160.0,103150.0,0.00089838]
[1737197966161,0.64446928,103160.0,103150.0,0.00089838]
[1737197966409,1.03568895,103160.0,103150.0,0.00089838]
[1737197966879,1.03568895,103160.0,103150.0,3.8e-07]
[1737197966880,1.03079266,103160.0,103150.0,3.8e-07]
[1737197967174,1.03079266,103160.0,103140.0,3.8e-07]
[1737197967175,0.32884229,103150.0,103140.0,3.8e-07]
[1737197967415,0.53628119,103150.0,103140.0,3.8e-07]
[1737197967643,0.64447928,103150.0,103140.0,3.8e-07]
[1737197968385,1.16133735,103150.0,103140.0,3.8e-07]
[1737197969482,1.03097738,103150.0,103140.0,3.8e-07]
[1737197971701,1.16128905,103150.0,103140.0,3.8e-07]
[1737197973271,1.17096115,103150.0,103140.0,3.8e-07]
[1737197975407,1.257784,103150.0,103140.0,3.8e-07]
[1737197975818,0.10489629,103140.0,103130.0,0.00089838]
[1737197976036,0.66356468,103140.0,103130.0,0.00089838]
[1737197976325,0.66259199,103140.0,103130.0,0.00089838]
[1737197977142,0.66268967,103140.0,103130.0,0.00089838]
[1737197977488,0.65963426,103140.0,103130.0,0.00089838]
[1737197978628,0.85792007,103140.0,103130.0,0.00089838]
[1737197982364,0.87697072,103140.0,103130.0,0.00089838]
[1737197983799,0.96379357,103140.0,103130.0,0.00089838]
[1737197984857,0.86868986,103140.0,103130.0,0.00089838]
[1737197985061,0.41030477,103130.0,103120.0,0.12769933]
[1737197985268,0.50954558,103130.0,103120.0,0.12769933]
[1737197985480,0.50954558,103130.0,103120.0,0.0489]
[1737197985700,0.55484558,103130.0,103120.0,0.0489]
[1737197985931,0.45484558,103130.0,103120.0,0.0489]
[1737197986848,0.55954558,103130.0,103120.0,0.0489]
[1737197987087,0.290958,103110.0,103100.0,0.0454]
[1737197987335,0.43318518,103110.0,103100.0,0.0454]
[1737197987850,0.43318518,103110.0,103100.0,0.0684]
[1737197988076,0.43318518,103110.0,103100.0,0.1456]
[1737197989572,0.43318518,103110.0,103100.0,0.1464988]
[1737197990929,0.36207159,103110.0,103100.0,0.1464988]
[1737197991135,0.43318518,103110.0,103100.0,0.1464988]
[1737197995977,0.44286088,103110.0,103100.0,0.1464988]
[1737197998717,0.37174729,103110.0,103100.0,0.1464988]
[1737197999989,0.44286088,103110.0,103100.0,0.1464988]
[1737198001908,0.71321528,103110.0,103100.0,0.0462988]
[1737198002359,0.71321528,103110.0,103100.0,0.0008988]
[1737198002796,0.39987451,103110.0,103100.0,0.0008988]
[1737198003001,0.37174729,103110.0,103100.0,0.1464988]
[1737198003216,0.3006337,103110.0,103100.0,0.1464988]
[1737198003427,0.51740096,103110.0,103100.0,0.1464988]
[1737198004309,0.71664177,103110.0,103100.0,0.0462988]
[1737198004518,0.71664177,103110.0,103100.0,0.0008988]
[1737198007166,1.08377629,103110.0,103100.0,0.0008988]
[1737198007582,0.98377629,103110.0,103100.0,0.0008988]
[1737198007800,1.08377629,103110.0,103100.0,0.0008988]
[1737198009480,0.98377629,103110.0,103100.0,0.0008988]
[1737198010106,1.15772935,103110.0,103100.0,0.0008988]
[1737198010327,1.25772935,103110.0,103100.0,0.0008988]
[1737198014481,0.1,103100.0,103080.0,0.00303053]
[1737198014697,0.50388494,103090.0,103080.0,0.00303053]
[1737198014906,0.60291225,103090.0,103080.0,0.00303053]
[1737198015324,0.50291225,103090.0,103080.0,0.00303053]
[1737198015528,0.71129588,103090.0,103080.0,0.00303053]
[1737198015734,0.73027611,103090.0,103080.0,0.00303053]
[1737198015914,0.73037372,103090.0,103080.0,0.00303053]
[1737198016148,0.097012,103080.0,103070.0,0.12719775]
[1737198016359,0.097012,103080.0,103070.0,0.04619775]
[1737198016360,0.51399276,103080.0,103070.0,0.04619775]
[1737198016571,0.63982007,103080.0,103070.0,0.00089775]
[1737198016752,0.1,103070.0,103050.0,0.17324996]
[1737198016999,0.45562713,103060.0,103050.0,0.00574872]
[1737198017205,0.45465444,103060.0,103050.0,0.00574872]
[1737198017416,0.66303807,103060.0,103050.0,0.00089838]
[1737198017633,0.45465444,103060.0,103050.0,0.00089838]
[1737198017857,0.20541363,103060.0,103050.0,0.02389838]
[1737198018085,0.20638632,103060.0,103050.0,0.15019838]
[1737198022437,0.2158208,103060.0,103050.0,0.15019838]
[1737198022643,0.21484811,103060.0,103050.0,0.15019838]
[1737198022849,0.23415973,103060.0,103050.0,0.15019838]
[1737198023278,0.33340054,103060.0,103050.0,0.12719838]
[1737198023491,0.44178417,103060.0,103050.0,0.12719838]
[1737198023699,0.33340054,103060.0,103050.0,0.12719838]
[1737198025452,0.54178417,103060.0,103050.0,0.00089838]
[1737198028237,0.66768417,103060.0,103050.0,0.00089838]
[1737198028670,0.61788417,103060.0,103050.0,0.00089838]
[1737198029566,0.61788417,103060.0,103050.0,2.438e-05]
[1737198031308,0.57687743,103060.0,103050.0,2.438e-05]
[1737198031520,0.72687743,103060.0,103050.0,2.438e-05]
[1737198033037,0.73177372,103060.0,103050.0,2.438e-05]
[1737198034121,0.19704,103050.0,103040.0,0.00088276]
[1737198034355,0.51402076,103050.0,103040.0,0.00088276]
[1737198034567,0.51304807,103050.0,103040.0,0.00088276]
[1737198035393,0.51304807,103050.0,103040.0,0.00138717]
[1737198038995,0.66304807,103050.0,103040.0,0.00138717]
[1737198042754,0.20542363,103050.0,103040.0,0.12968717]
[1737198043170,0.20639632,103050.0,103040.0,0.12968717]
[1737198043617,0.31477995,103050.0,103040.0,0.12968717]
[1737198043821,0.31380726,103050.0,103040.0,0.12968717]
[1737198044292,0.20542363,103050.0,103040.0,0.12968717]
[1737198045497,0.10838363,103050.0,103040.0,0.12968717]
[1737198045734,0.10838363,103050.0,103040.0,0.22976834]
[1737198046444,0.20542363,103050.0,103040.0,0.22976834]
[1737198047261,0.10838363,103050.0,103040.0,0.23461982]
[1737198047707,0.10935632,103050.0,103040.0,0.23461982]
[1737198048283,0.10935632,103050.0,103040.0,0.22976834]
[1737198048708,0.10922046,103050.0,103040.0,0.22976834]
[1737198048912,0.33713412,103060.0,103050.0,0.1283]
[1737198049137,0.32769964,103060.0,103050.0,0.34344371]
[1737198049349,0.32769964,103060.0,103050.0,0.44268452]
[1737198049569,0.00089964,103060.0,103050.0,0.44268452]
[1737198049993,0.00089964,103060.0,103050.0,0.59268452]
[1737198051471,0.00089964,103060.0,103050.0,0.49758081]
[1737198051690,0.00089964,103060.0,103050.0,0.61268452]
[1737198053929,0.00089964,103060.0,103050.0,0.59268452]
[1737198058793,0.00089964,103060.0,103050.0,0.70106815]
[1737198059277,0.00089964,103060.0,103050.0,0.80106815]
[1737198060028,0.39936563,103100.0,103080.0,0.1219]
[1737198060305,0.20537863,103100.0,103080.0,0.1219]
[1737198060530,0.20536863,103110.0,103080.0,0.21700371]
[1737198060748,0.11790416,103100.0,103080.0,0.21700371]
[1737198060983,0.10935632,103100.0,103080.0,0.21700371]
[1737198061208,0.10935632,103090.0,103080.0,0.24050812]
[1737198061415,0.10935632,103090.0,103080.0,0.21750812]
[1737198063737,0.20635832,103090.0,103080.0,0.21750812]
[1737198063981,0.20635832,103090.0,103080.0,0.04610441]
[1737198064649,0.20635832,103090.0,103080.0,0.14120812]
[1737198064876,0.20635832,103090.0,103080.0,0.04610441]
[1737198065533,0.20635832,103090.0,103080.0,0.00050441]
[1737198065967,0.30559913,103090.0,103080.0,0.00050441]
[1737198066196,0.30462644,103090.0,103080.0,0.00050441]
[1737198066868,0.38242644,103090.0,103080.0,0.00050441]
[1737198071253,0.74081007,103090.0,103080.0,0.00050441]
[1737198071467,0.66381007,103090.0,103080.0,0.00050441]
[1737198071700,0.67323918,103090.0,103080.0,0.00050441]
[1737198071936,0.72663547,103090.0,103080.0,0.00050441]
[1737198072147,0.74606677,103090.0,103080.0,0.00050441]
[1737198072821,0.74117048,103090.0,103080.0,0.00050441]
[1737198073036,0.84041129,103090.0,103080.0,0.00050441]
[1737198073927,1.44679723,103090.0,103080.0,0.00050441]
[1737198074356,1.34755642,103090.0,103080.0,0.00050441]
[1737198074575,1.33917279,103090.0,103080.0,0.00050441]
[1737198074787,0.95110638,103090.0,103080.0,0.00050441]
[1737198075222,0.60687308,103090.0,103080.0,0.00050441]
[1737198075412,0.60687308,103090.0,103080.0,0.04950441]
[1737198075896,0.21705355,103090.0,103080.0,0.04950441]
[1737198076337,0.10881143,103100.0,103080.0,0.04950441]
[1737198076556,0.10881143,103100.0,103090.0,0.0782]
[1737198077222,0.0004278,103100.0,103090.0,0.0782]
[1737198077435,0.3725278,103100.0,103090.0,0.1272]
[1737198077925,0.3272278,103100.0,103090.0,0.22230371]
[1737198078138,0.3272278,103100.0,103090.0,0.32154452]
[1737198078784,0.3272278,103100.0,103090.0,0.22230371]
[1737198081827,0.43561143,103100.0,103090.0,0.22230371]
[1737198082286,0.3272278,103100.0,103090.0,0.22230371]
[1737198082873,0.43561143,103100.0,103090.0,0.22230371]
[1737198083402,0.10881143,103100.0,103090.0,0.22230371]
[1737198083603,0.10978412,103100.0,103090.0,0.22230371]
[1737198084058,0.0004278,103100.0,103090.0,0.22230371]
[1737198085153,0.00140049,103100.0,103090.0,0.22230371]
[1737198085388,0.0004278,103100.0,103090.0,0.22230371]
[1737198086759,0.00140049,103100.0,103090.0,0.22230371]
[1737198087739,0.0004278,103100.0,103090.0,0.22230371]
[1737198087990,0.00140049,103100.0,103090.0,0.22230371]
[1737198088482,0.10978412,103100.0,103090.0,0.049]
[1737198088726,0.50000493,103100.0,103080.0,0.12750441]
[1737198089016,0.10838363,103090.0,103080.0,0.12750441]
[1737198089233,0.30462644,103090.0,103080.0,0.12750441]
[1737198089476,0.34992644,103090.0,103080.0,0.04930441]
[1737198089935,0.25292444,103090.0,103080.0,0.14440812]
[1737198090658,0.34992644,103090.0,103080.0,0.04930441]
[1737198090940,0.45831007,103090.0,103080.0,0.00050441]
[1737198091172,0.53891007,103090.0,103080.0,0.00050441]
[1737198091433,0.43052644,103090.0,103080.0,0.00050441]
[1737198091852,0.53891007,103090.0,103080.0,0.00050441]
[1737198092131,0.43052644,103090.0,103080.0,0.00050441]
[1737198093356,0.43095424,103090.0,103080.0,0.00050441]
[1737198093597,0.44049585,103090.0,103080.0,0.00050441]
[1737198095631,0.52712241,103090.0,103080.0,0.00050441]
[1737198100584,0.44049585,103090.0,103080.0,0.00050441]
[1737198101251,0.39519585,103090.0,103080.0,0.00050441]
[1737198101463,0.48182241,103090.0,103080.0,0.00050441]
[1737198102741,0.38482041,103090.0,103080.0,0.00050441]
[1737198103176,0.17719597,103090.0,103080.0,0.00050441]
[1737198103385,0.16765436,103090.0,103080.0,0.09560812]
[1737198103849,0.27603799,103090.0,103080.0,0.09560812]
[1737198104289,0.18941143,103090.0,103080.0,0.09560812]
[1737198104719,0.0810278,103090.0,103080.0,0.09560812]
[1737198105138,0.18941143,103090.0,103080.0,0.09560812]
[1737198106645,0.10881143,103090.0,103080.0,0.09560812]
[1737198107309,0.0004278,103090.0,103080.0,0.09560812]
[1737198107521,0.10881143,103090.0,103080.0,0.00050441]
[1737198107936,0.10881143,103090.0,103080.0,0.09560812]
[1737198108156,0.10881143,103090.0,103080.0,0.00050441]
[1737198108623,0.20581343,103090.0,103080.0,0.00050441]
[1737198108799,0.10978412,103090.0,103080.0,0.00050441]
[1737198109842,0.10978412,103090.0,103080.0,0.09560812]
[1737198110049,0.10978412,103090.0,103080.0,0.00050441]
[1737198110259,0.10978412,103090.0,103080.0,0.09560812]
[1737198110463,0.10978412,103090.0,103080.0,0.00050441]
[1737198110890,0.20678612,103090.0,103080.0,0.00050441]
[1737198111156,0.10978412,103090.0,103080.0,0.09560812]
[1737198111647,0.10978412,103090.0,103080.0,0.00050441]
[1737198111895,0.20678612,103090.0,103080.0,0.00050441]
[1737198112131,0.30602693,103090.0,103080.0,0.00050441]
[1737198112354,0.41343787,103090.0,103080.0,0.00050441]
[1737198112579,0.30505424,103090.0,103080.0,0.00050441]
[1737198113265,0.20805224,103090.0,103080.0,0.00050441]
[1737198113474,0.2946788,103090.0,103080.0,0.00050441]
[1737198113966,0.3916808,103090.0,103080.0,0.00050441]
[1737198114638,0.30505424,103090.0,103080.0,0.00050441]
[1737198116347,0.41343787,103090.0,103080.0,0.00050441]
[1737198116975,0.66343787,103090.0,103080.0,0.00050441]
[1737198118148,1.0532574,103090.0,103080.0,0.00050441]
[1737198118763,0.85455204,103090.0,103080.0,0.00050441]
[1737198118988,0.70455204,103090.0,103080.0,0.00050441]
[1737198120422,1.02950208,103090.0,103080.0,0.00050441]
[1737198120622,0.92111845,103090.0,103080.0,0.00050441]
[1737198121595,0.83449189,103090.0,103080.0,0.00050441]
[1737198126373,0.94287552,103090.0,103080.0,0.00050441]
[1737198126629,0.83449189,103090.0,103080.0,0.00050441]
[1737198131172,0.94287552,103090.0,103080.0,0.00050441]
[1737198131403,1.19287552,103090.0,103080.0,0.00050441]
[1737198132439,1.40251262,103090.0,103080.0,0.00050441]
[1737198132715,1.29761633,103090.0,103080.0,0.00050441]
[1737198132947,1.03773664,103090.0,103080.0,0.00050441]
[1737198133182,0.00489629,103070.0,103060.0,0.00089838]
[1737198133443,0.56051442,103070.0,103060.0,0.00104964]
[1737198133680,0.45464544,103070.0,103060.0,0.00104964]
[1737198135447,0.84651887,103070.0,103060.0,0.00104964]
[1737198137460,0.97708363,103070.0,103060.0,0.00104964]
[1737198139398,0.84638206,103070.0,103060.0,0.00104964]
[1737198139559,0.85583383,103070.0,103060.0,0.13074964]
[1737198142209,0.68166786,103070.0,103060.0,0.13074964]
[1737198143349,0.5511031,103070.0,103060.0,0.13074964]
[1737198144693,0.85583383,103070.0,103060.0,0.13074964]
[1737198145925,0.68166786,103070.0,103060.0,0.13074964]
[1737198146847,0.5511031,103070.0,103060.0,0.13074964]
[1737198148790,0.19569847,103070.0,103060.0,0.22777964]
[1737198149242,0.3150699,103070.0,103060.0,0.22777964]
[1737198149449,0.31409721,103070.0,103060.0,0.22777964]
[1737198150453,0.31409721,103070.0,103060.0,0.13074964]
[1737198150859,0.31409721,103070.0,103060.0,0.04814964]
[1737198153245,0.4011031,103070.0,103060.0,0.04814964]
[1737198154727,0.53166786,103070.0,103060.0,0.04814964]
[1737198155831,0.63166786,103070.0,103060.0,0.00104964]
[1737198156035,0.85996786,103070.0,103060.0,0.00104964]
[1737198156452,0.95920867,103070.0,103060.0,0.00104964]
[1737198156680,0.9675923,103070.0,103060.0,0.00104964]
[1737198156896,1.02028859,103070.0,103060.0,0.00104964]
[1737198157113,1.19637508,103070.0,103060.0,0.00104964]
[1737198157791,1.21562379,103070.0,103060.0,0.00104964]
[1737198158186,1.56740429,103070.0,103060.0,0.00104964]
[1737198159600,1.11765544,103070.0,103060.0,0.00104964]
[1737198161481,1.56710424,103070.0,103060.0,0.00104964]
[1737198163710,1.82795973,103070.0,103060.0,0.00104964]
[1737198165090,1.22308649,103070.0,103060.0,0.00104964]
[1737198165311,1.04968278,103070.0,103060.0,0.00104964]
[1737198165967,1.04478649,103070.0,103060.0,0.00104964]
[1737198166181,1.07659825,103070.0,103060.0,0.00104964]
[1737198167040,1.11539925,103070.0,103060.0,0.00104964]
[1737198167766,1.21464006,103070.0,103060.0,0.00104964]
[1737198167978,1.21953635,103070.0,103060.0,0.00104964]
[1737198168190,0.99730685,103070.0,103060.0,0.00104964]
[1737198168827,0.89782347,103070.0,103060.0,0.00104964]
[1737198170612,0.78943984,103070.0,103060.0,0.00104964]
[1737198170817,0.88765613,103070.0,103060.0,0.00104964]
[1737198173238,1.01814017,103070.0,103060.0,0.00104964]
[1737198174353,1.10506698,103070.0,103060.0,0.00104964]
[1737198174692,1.10506698,103070.0,103060.0,0.07624964]
[1737198174912,1.00017069,103070.0,103060.0,0.12274964]
[1737198175106,1.10506698,103070.0,103060.0,0.12274964]
[1737198176612,0.84421149,103070.0,103060.0,0.12274964]
[1737198177311,0.74421149,103070.0,103060.0,0.12274964]
[1737198177532,0.84421149,103070.0,103060.0,0.12274964]
[1737198179664,1.10506698,103070.0,103060.0,0.12274964]
[1737198181382,1.13907695,103070.0,103060.0,0.12274964]
[1737198181924,1.03418066,103070.0,103060.0,0.12274964]
[1737198182801,0.96298386,103070.0,103060.0,0.12274964]
[1737198183064,0.75493415,103070.0,103060.0,0.21977964]
[1737198183508,0.70546385,103070.0,103060.0,0.21977964]
[1737198183867,0.70469252,103070.0,103060.0,0.21977964]
[1737198184098,0.70469252,103070.0,103060.0,0.12274964]
[1737198184315,0.53077852,103070.0,103060.0,0.12274964]
[1737198184569,0.43375752,103070.0,103060.0,0.12274964]
[1737198184734,0.33553061,103070.0,103060.0,0.12274964]
[1737198184947,0.2275071,103070.0,103060.0,0.21785335]
[1737198186191,0.2275071,103070.0,103060.0,0.23594309]
[1737198186390,0.33595841,103070.0,103060.0,0.23594309]
[1737198186613,0.11833088,103070.0,103060.0,0.23594309]
[1737198186848,0.11930357,103070.0,103060.0,0.23594309]
[1737198187468,0.21632457,103070.0,103060.0,0.23594309]
[1737198187669,0.21535188,103070.0,103060.0,0.23594309]
[1737198187870,0.31459269,103070.0,103060.0,0.14083938]
[1737198188287,0.31459269,103070.0,103060.0,0.12274964]
[1737198188492,0.41459269,103070.0,103060.0,0.04754964]
[1737198189330,0.41459269,103070.0,103060.0,0.00104964]
[1737198189945,0.91531044,103070.0,103060.0,0.00104964]
[1737198190155,1.02376175,103070.0,103060.0,0.00104964]
[1737198191079,0.8063509,103070.0,103060.0,0.00104964]
[1737198191498,0.59789959,103070.0,103060.0,0.00104964]
[1737198191735,0.8063509,103070.0,103060.0,0.00104964]
[1737198192258,1.02376175,103070.0,103060.0,0.00104964]
[1737198192659,1.04270023,103070.0,103060.0,0.00104964]
[1737198192958,1.19270023,103070.0,103060.0,0.00104964]
[1737198194198,0.9750727,103070.0,103060.0,0.00104964]
[1737198194877,0.9750727,103070.0,103060.0,9.13734964]
[1737198199774,0.80094202,103070.0,103060.0,9.13734964]
[1737198201302,0.80094202,103070.0,103060.0,8.96743564]
[1737198201817,0.97504496,103070.0,103060.0,8.96743564]
[1737198202649,0.87504496,103070.0,103060.0,8.96743564]
[1737198202875,1.10562581,103070.0,103060.0,9.04573564]
[1737198203281,1.10562581,103070.0,103060.0,8.96743564]
[1737198205566,1.13958632,103070.0,103060.0,8.96743564]
[1737198206355,1.00900547,103070.0,103060.0,8.96743564]
[1737198209323,1.03950627,103070.0,103060.0,8.96743564]
[1737198210274,1.03950627,103070.0,103060.0,8.96833423]
[1737198210516,1.00900547,103070.0,103060.0,8.96833423]
[1737198211214,1.16020767,103070.0,103060.0,8.96833423]
[1737198211436,1.08900176,103070.0,103060.0,8.96833423]
[1737198212129,1.16020767,103070.0,103060.0,8.96833423]
[1737198212408,1.08900176,103070.0,103060.0,8.96833423]
[1737198212915,0.95834346,103070.0,103060.0,8.96833423]
[1737198214670,1.02954937,103070.0,103060.0,8.96833423]
[1737198215098,0.95834346,103070.0,103060.0,8.96833423]
[1737198216275,1.02954937,103070.0,103060.0,8.96833423]
[1737198216495,0.95834346,103070.0,103060.0,8.96833423]
[1737198217365,1.02954937,103070.0,103060.0,8.96833423]
[1737198217682,0.95834346,103070.0,103060.0,8.96833423]
[1737198219220,1.01632175,103070.0,103060.0,8.96833423]
[1737198219675,1.08752766,103070.0,103060.0,8.96833423]
[1737198219888,0.98752766,103070.0,103060.0,8.96833423]
[1737198220148,0.98263137,103070.0,103060.0,8.96833423]
[1737198220357,0.98752766,103070.0,103060.0,8.96833423]
[1737198220571,0.92954937,103070.0,103060.0,8.96833423]
[1737198221162,1.41298298,103070.0,103060.0,8.96833423]
[1737198222600,0.96259896,103070.0,103060.0,8.96833423]
[1737198223656,1.41298298,103070.0,103060.0,8.96833423]
[1737198223981,1.51222379,103070.0,103060.0,8.96833423]
[1737198225434,1.51222379,103070.0,103060.0,8.92392699]
[1737198225653,1.51222379,103070.0,103060.0,8.88963367]
[1737198225857,1.5073275,103070.0,103060.0,8.58416472]
[1737198226070,1.5073275,103070.0,103060.0,8.55519068]
[1737198226295,1.0244119,103070.0,103060.0,8.55519068]
[1737198226655,0.92517109,103070.0,103060.0,8.55519068]
[1737198228914,0.77886518,103070.0,103060.0,8.55519068]
[1737198229129,0.61749168,103070.0,103060.0,8.55519068]
[1737198229570,0.51749168,103070.0,103060.0,8.55519068]
[1737198229780,0.62238797,103070.0,103060.0,8.55519068]
[1737198229991,0.46749168,103070.0,103060.0,8.63189068]
[1737198230207,0.20614138,103070.0,103060.0,8.67919068]
[1737198230411,0.20614138,103070.0,103060.0,8.77622068]
[1737198230618,0.29885145,103070.0,103060.0,8.77622068]
[1737198231233,0.39587245,103070.0,103060.0,8.77622068]
[1737198231440,0.39587245,103070.0,103060.0,8.87132439]
[1737198231850,0.17810648,103070.0,103060.0,8.87132439]
[1737198232061,0.17810648,103070.0,103060.0,8.87105913]
[1737198232278,0.17810648,103070.0,103060.0,8.77402913]
[1737198232487,0.34952589,103070.0,103060.0,8.67892542]
[1737198232692,0.3485532,103070.0,103060.0,8.67892542]
[1737198233566,0.31462091,103070.0,103060.0,8.67892542]
[1737198235535,0.46462091,103070.0,103060.0,8.67892542]
[1737198237167,0.85655492,103070.0,103060.0,8.67892542]
[1737198239543,0.98723245,103070.0,103060.0,8.67892542]
[1737198240520,0.85655492,103070.0,103060.0,8.60222542]
[1737198240928,0.8756207,103070.0,103060.0,8.60222542]
[1737198241996,1.08410023,103070.0,103060.0,8.60222542]
[1737198242165,0.9756207,103070.0,103060.0,8.60222542]
[1737198242384,0.98410023,103070.0,103060.0,8.60222542]
[1737198242565,0.98899652,103070.0,103060.0,8.55492542]
[1737198243782,0.98899652,103070.0,103060.0,8.49394093]
[1737198243783,1.06619652,103070.0,103060.0,8.49394093]
[1737198244181,1.16619652,103070.0,103060.0,8.49394093]
[1737198244413,0.93563601,103070.0,103060.0,8.49394093]
[1737198244924,0.93563601,103070.0,103060.0,8.47227362]
[1737198246402,0.93097181,103070.0,103060.0,8.47227362]
[1737198247071,0.66959831,103070.0,103060.0,8.47227362]
[1737198247278,0.76883912,103070.0,103060.0,8.47227362]
[1737198247481,0.76959831,103070.0,103060.0,8.47227362]
[1737198247691,0.59239831,103070.0,103060.0,8.47227362]
[1737198247888,0.58391878,103070.0,103060.0,8.47227362]
[1737198248097,0.58750202,103070.0,103060.0,8.47227362]
[1737198248311,0.59239831,103070.0,103060.0,8.47227362]
[1737198249327,0.62713102,103070.0,103060.0,8.47227362]
[1737198249790,0.62713102,103070.0,103060.0,8.47971362]
[1737198250598,0.59239831,103070.0,103060.0,8.47971362]
[1737198250798,0.57902249,103070.0,103060.0,8.47971362]
[1737198251045,0.69239831,103070.0,103060.0,8.47971362]
[1737198253398,0.69227226,103070.0,103060.0,8.47971362]
[1737198254424,0.91003066,103070.0,103060.0,8.47971362]
[1737198255575,0.69227226,103070.0,103060.0,8.47971362]
[1737198256928,0.95364576,103070.0,103060.0,8.47971362]
[1737198258012,0.94874947,103070.0,103060.0,8.47971362]
[1737198259664,0.84026994,103070.0,103060.0,8.47971362]
[1737198260329,0.95364576,103070.0,103060.0,8.47971362]
[1737198260566,0.98320857,103070.0,103060.0,8.47971362]
[1737198261130,0.95364576,103070.0,103060.0,8.47971362]
[1737198262041,0.74026994,103070.0,103060.0,8.47971362]
[1737198262249,0.59026994,103070.0,103060.0,8.61111362]
[1737198262459,0.46272463,103070.0,103060.0,8.70621733]
[1737198262664,0.57120416,103070.0,103060.0,8.61111362]
[1737198262878,0.57120416,103070.0,103060.0,8.70621733]